[Event "FIDE WCCC Open-08 2024"]
[Site "Montesilvano"]
[Date "2024.11.19"]
[Round "5.21"]
[White "Bisetto, Alessandro Federico"]
[Black "Stankowski, Wiktor"]
[Result "0-1"]
[ECO "B90"]
[WhiteElo "1671"]
[BlackElo "1617"]
[Annotator "NA RC"]
[PlyCount "93"]
[EventDate "2024.11.18"]
[EventType "swiss"]
[EventCountry "ITA"]
[SourceTitle "playchess.com"]
[Source "ChessBase"]
[SourceQuality "1"]
[TimeControl "5400+30"]

1. e4 {[%emt 0:00:08]} c5 {[%emt 0:00:20]} 2. Nf3 {[%emt 0:00:03]} d6 {[%emt 0:00:41]} 3. d4 {[%emt 0:00:31]} cxd4 {[%emt 0:00:41]} 4. Nxd4 {[%emt 0:00:23]} Nf6 {[%emt 0:00:54]} 5. Nc3 {[%emt 0:02:33]} a6 {[%emt 0:00:58]} 6. Be3 {[%emt 0:01:06]} e5 {[%emt 0:00:59]} 7. Nf3 {[%emt 0:00:30]} h6 {[%emt 0:02:51]} 8. Bc4 {[%emt 0:01:12]} Be7 {[%emt 0:07:04]} 9. Nd5 {[%emt 0:26:11]} Nxd5 {[%emt 0:18:37]} 10. Bxd5 {[%emt 0:00:22]} O-O {[%emt 0:02:18]} 11. h3 {[%emt 0:00:22]} Nd7 {[%emt 0:09:01]} 12. Qd3 {[%emt 0:06:35]} Nf6 {[%emt 0:04:30]} 13. Bb3 {[%emt 0:00:58]} Bd7 {[%emt 0:04:10]} 14. O-O {[%emt 0:01:54]} Rc8 {[%emt 0:10:42]} 15. Nd2 {[%emt 0:01:35]} Bc6 {[%emt 0:08:14]} 16. f3 {[%emt 0:02:41]} d5 {[%emt 0:26:30]} 17. Qe2 {[%emt 0:07:29]} d4 {[%emt 0:00:00]} 18. Bf2 {[%emt 0:04:05]} Bb5 {[%emt 0:00:00]} 19. Bc4 {[%emt 0:00:08]} Bxc4 {[%emt 0:00:00]} 20. Nxc4 {[%emt 0:00:10]} Qc7 {[%emt 0:00:00]} 21. b3 {[%emt 0:03:01]} b5 {[%emt 0:00:00]} 22. Nb2 {[%emt 0:00:03]} Qxc2 {[%emt 0:00:00]} 23. Qxc2 {[%emt 0:00:17]} Rxc2 {[%emt 0:00:00]} 24. Nd3 {[%emt 0:00:09]} Nd7 {[%emt 0:00:00]} 25. Bg3 {[%emt 0:00:11]} f6 {[%emt 0:00:00]} 26. Rfc1 {[%emt 0:00:17]} Rfc8 {[%emt 0:00:00]} 27. Rxc2 {[%emt 0:00:18]} Rxc2 {[%emt 0:00:00]} 28. Rc1 {[%emt 0:00:23]} Rxc1+ {[%emt 0:00:00]} 29. Nxc1 {[%emt 0:00:05]} Kf7 {[%emt 0:00:00]} 30. Kf2 {[%emt 0:00:13]} Ke6 {[%emt 0:00:00]} 31. Nd3 {[%emt 0:00:28]} g5 {[%emt 0:00:00]} 32. b4 {[%emt 0:00:09]} Nb6 {[%emt 0:00:00]} 33. Nc5+ {[%emt 0:01:00]} Bxc5 {[%emt 0:00:00]} 34. bxc5 {[%emt 0:00:05]} Na4 {[%emt 0:00:00]} 35. c6 {[%emt 0:00:09]} Kd6 {[%emt 0:00:00]} 36. h4 {[%emt 0:00:02]} Kxc6 {[%emt 0:00:00]} 37. Ke1 {[%emt 0:00:25]} Nc3 {[%emt 0:00:00]} 38. Bf2 {[%emt 0:01:11]} Nxa2 {[%emt 0:00:00]} 39. Kd2 {[%emt 0:00:07]} a5 {[%emt 0:00:00]} 40. g3 {[%emt 0:00:11]} a4 {[%emt 0:00:00]} 41. f4 {[%emt 0:00:05]} g4 {[%emt 0:00:00]} 42. Be1 {[%emt 0:01:10]} h5 {[%emt 0:00:00]} 43. Kc2 {[%emt 0:00:46]} Nc3 {[%emt 0:00:00]} 44. Kd3 {[%emt 0:00:21]} a3 {[%emt 0:00:12]} 45. Bxc3 {[%emt 0:01:22]} dxc3 {[%emt 0:00:08]} 46. Kxc3 {[%emt 0:00:07]} exf4 {[%emt 0:00:24]} 47. Kd4 {[%emt 0:42:29]} 0-1

[Event "FIDE WCCC Open-08 2024"]
[Site "Montesilvano"]
[Date "2024.11.19"]
[Round "5.22"]
[White "Zhanabayev, Arystan"]
[Black "Pham, Han Nam"]
[Result "0-1"]
[ECO "B22"]
[WhiteElo "1524"]
[BlackElo "1912"]
[Annotator "NA RC"]
[PlyCount "120"]
[EventDate "2024.11.18"]
[EventType "swiss"]
[EventCountry "ITA"]
[SourceTitle "playchess.com"]
[Source "ChessBase"]
[SourceQuality "1"]
[TimeControl "5400+30"]

1. e4 {[%emt 0:00:00]} c5 {[%emt 0:00:38]} 2. c3 {[%emt 0:00:06]} Nf6 {[%emt 0:00:16]} 3. e5 {[%emt 0:00:13]} Nd5 {[%emt 0:00:26]} 4. Nf3 {[%emt 0:00:17]} Nc6 {[%emt 0:00:45]} 5. Bc4 {[%emt 0:00:13]} Nb6 {[%emt 0:00:08]} 6. Bb3 {[%emt 0:00:05]} d6 {[%emt 0:00:12]} 7. exd6 {[%emt 0:02:33]} Qxd6 {[%emt 0:00:12]} 8. h3 {[%emt 0:02:57]} Be6 {[%emt 0:00:30]} 9. Bc2 {[%emt 0:08:06]} g6 {[%emt 0:01:40]} 10. Na3 {[%emt 0:02:05]} Bg7 {[%emt 0:02:09]} 11. b3 {[%emt 0:03:49]} O-O {[%emt 0:02:05]} 12. Bb2 {[%emt 0:01:45]} Rfd8 {[%emt 0:02:10]} 13. Nb5 {[%emt 0:03:05]} Qd7 {[%emt 0:00:55]} 14. d4 {[%emt 0:00:51]} cxd4 {[%emt 0:01:23]} 15. Nbxd4 {[%emt 0:00:15]} Rac8 {[%emt 0:02:57]} 16. O-O {[%emt 0:01:54]} Nxd4 {[%emt 0:03:25]} 17. Nxd4 {[%emt 0:02:30]} Nd5 {[%emt 0:03:10]} 18. c4 {[%emt 0:20:26]} Nf4 {[%emt 0:01:09]} 19. Nxe6 {[%emt 0:01:18]} Qxe6 {[%emt 0:01:56]} 20. Qb1 {[%emt 0:03:46]} Bxb2 {[%emt 0:02:30]} 21. Qxb2 {[%emt 0:00:27]} Qc6 {[%emt 0:00:29]} 22. f3 {[%emt 0:03:28]} Rd2 {[%emt 0:01:07]} 23. Qe5 {[%emt 0:11:10]} Ne2+ {[%emt 0:01:08]} 24. Kh2 {[%emt 0:00:27]} Rxc2 {[%emt 0:01:23]} 25. Qxe7 {[%emt 0:00:27]} Re8 {[%emt 0:00:36]} 26. Qh4 {[%emt 0:03:01]} Qc7+ {[%emt 0:01:31]} 27. f4 {[%emt 0:00:18]} Re4 {[%emt 0:00:38]} 28. Rae1 {[%emt 0:04:18]} Rxf4 {[%emt 0:01:47]} 29. Rxf4 {[%emt 0:00:41]} Qxf4+ {[%emt 0:00:41]} 30. Qxf4 {[%emt 0:00:07]} Nxf4 {[%emt 0:00:13]} 31. Re7 {[%emt 0:00:38]} Rxg2+ {[%emt 0:00:31]} 32. Kh1 {[%emt 0:00:04]} Rxa2 {[%emt 0:00:40]} 33. Rxb7 {[%emt 0:00:09]} Nxh3 {[%emt 0:00:26]} 34. c5 {[%emt 0:00:27]} Ng5 {[%emt 0:00:48]} 35. Kg1 {[%emt 0:00:40]} Rc2 {[%emt 0:00:28]} 36. b4 {[%emt 0:00:51]} a5 {[%emt 0:01:05]} 37. bxa5 {[%emt 0:25:33]} Rxc5 {[%emt 0:00:08]} 38. a6 {[%emt 0:00:00]} Ra5 {[%emt 0:00:03]} 39. a7 {[%emt 0:00:00]} Kg7 {[%emt 0:00:06]} 40. Rb5 {[%emt 0:00:00]} Ra1+ {[%emt 0:00:19]} 41. Kg2 {[%emt 0:00:00]} Ne6 {[%emt 0:00:37]} 42. Rb7 {[%emt 0:00:00]} Nd4 {[%emt 0:00:19]} 43. Kf2 {[%emt 0:00:00]} Nc6 {[%emt 0:00:09]} 44. Rb1 {[%emt 0:00:00]} Rxa7 {[%emt 0:00:11]} 45. Kg3 {[%emt 0:00:00]} Ra4 {[%emt 0:00:15]} 46. Rc1 {[%emt 0:00:00]} Nd4 {[%emt 0:00:10]} 47. Re1 {[%emt 0:00:00]} Nf5+ {[%emt 0:00:55]} 48. Kf2 {[%emt 0:00:00]} h5 {[%emt 0:00:14]} 49. Rh1 {[%emt 0:00:00]} h4 {[%emt 0:00:11]} 50. Rh3 {[%emt 0:00:00]} Ra2+ {[%emt 0:00:12]} 51. Kg1 {[%emt 0:00:00]} g5 {[%emt 0:00:19]} 52. Rf3 {[%emt 0:00:00]} Ng3 {[%emt 0:00:13]} 53. Rb3 {[%emt 0:00:00]} Ra1+ {[%emt 0:00:25]} 54. Kg2 {[%emt 0:00:00]} f5 {[%emt 0:00:16]} 55. Rb7+ {[%emt 0:00:00]} Kh6 {[%emt 0:00:12]} 56. Rb6+ {[%emt 0:00:00]} Kh5 {[%emt 0:00:10]} 57. Rb5 {[%emt 0:00:00]} Kg4 {[%emt 0:00:38]} 58. Rb4+ {[%emt 0:00:00]} f4 {[%emt 0:00:07]} 59. Rb5 {[%emt 0:00:00]} h3+ {[%emt 0:00:30]} 60. Kf2 {[%emt 0:00:00]} Rf1# {[%emt 0:01:07]} 0-1

[Event "FIDE WCCC Open-08 2024"]
[Site "Montesilvano"]
[Date "2024.11.19"]
[Round "5.23"]
[White "Dzelnik, Robert"]
[Black "Tokmachov, Daniel"]
[Result "1-0"]
[ECO "B12"]
[WhiteElo "1822"]
[BlackElo "1565"]
[Annotator "NA RC"]
[PlyCount "95"]
[EventDate "2024.11.18"]
[EventType "swiss"]
[EventCountry "ITA"]
[SourceTitle "playchess.com"]
[Source "ChessBase"]
[SourceQuality "1"]
[TimeControl "5400+30"]

1. e4 {[%emt 0:00:02]} c6 {[%emt 0:00:07]} 2. d4 {[%emt 0:00:06]} d5 {[%emt 0:00:05]} 3. e5 {[%emt 0:00:07]} Bf5 {[%emt 0:00:05]} 4. h4 {[%emt 0:00:07]} h6 {[%emt 0:00:11]} 5. Bd3 {[%emt 0:01:18]} Bxd3 {[%emt 0:00:56]} 6. cxd3 {[%emt 0:00:06]} e6 {[%emt 0:01:27]} 7. a3 {[%emt 0:01:23]} Nd7 {[%emt 0:01:03]} 8. Nf3 {[%emt 0:03:04]} Rc8 {[%emt 0:02:50]} 9. g4 {[%emt 0:00:27]} c5 {[%emt 0:03:53]} 10. dxc5 {[%emt 0:02:16]} Nxc5 {[%emt 0:01:42]} 11. b4 {[%emt 0:02:44]} Nd7 {[%emt 0:00:15]} 12. d4 {[%emt 0:06:06]} Qc7 {[%emt 0:00:47]} 13. O-O {[%emt 0:05:06]} h5 {[%emt 0:08:21]} 14. Ng5 {[%emt 0:01:49]} hxg4 {[%emt 0:01:49]} 15. Qxg4 {[%emt 0:02:23]} Nh6 {[%emt 0:03:17]} 16. Qf3 {[%emt 0:18:19]} Be7 {[%emt 0:06:04]} 17. Be3 {[%emt 0:06:34]} Bxg5 {[%emt 0:07:30]} 18. Bxg5 {[%emt 0:02:35]} Nb6 {[%emt 0:05:06]} 19. Rc1 {[%emt 0:01:17]} Nc4 {[%emt 0:00:41]} 20. Nc3 {[%emt 0:00:59]} Qd7 {[%emt 0:03:08]} 21. Ne2 {[%emt 0:06:51]} Nf5 {[%emt 0:06:37]} 22. h5 {[%emt 0:01:31]} g6 {[%emt 0:07:10]} 23. h6 {[%emt 0:02:46]} Nxh6 {[%emt 0:04:32]} 24. Qh3 {[%emt 0:04:16]} f5 {[%emt 0:01:00]} 25. exf6 {[%emt 0:00:27]} Rc6 {[%emt 0:02:20]} 26. Bxh6 {[%emt 0:03:19]} Qh7 {[%emt 0:00:51]} 27. f7+ {[%emt 0:04:22]} Qxf7 {[%emt 0:00:52]} 28. Qg3 {[%emt 0:00:35]} Rxh6 {[%emt 0:04:13]} 29. Qb8+ {[%emt 0:00:28]} Ke7 {[%emt 0:00:27]} 30. Qxb7+ {[%emt 0:00:11]} Kf8 {[%emt 0:00:32]} 31. Qxc6 {[%emt 0:00:54]} Qf3 {[%emt 0:00:49]} 32. Ng3 {[%emt 0:02:52]} Rh3 {[%emt 0:03:20]} 33. Qc8+ {[%emt 0:04:32]} Ke7 {[%emt 0:01:41]} 34. Qc7+ {[%emt 0:00:36]} Kf6 {[%emt 0:00:57]} 35. Qd8+ {[%emt 0:00:25]} Kf7 {[%emt 0:00:31]} 36. Qg5 {[%emt 0:00:43]} e5 {[%emt 0:08:15]} 37. dxe5 {[%emt 0:00:56]} Ke8 {[%emt 0:07:26]} 38. Qxg6+ {[%emt 0:00:32]} Kd8 {[%emt 0:01:07]} 39. Qf6+ {[%emt 0:00:10]} Qxf6 {[%emt 0:00:12]} 40. exf6 {[%emt 0:00:06]} Ke8 {[%emt 0:00:23]} 41. Rd1 {[%emt 0:00:19]} a5 {[%emt 0:01:47]} 42. Rxd5 {[%emt 0:00:17]} axb4 {[%emt 0:00:32]} 43. axb4 {[%emt 0:00:08]} Na3 {[%emt 0:00:23]} 44. Rxa3 {[%emt 0:00:11]} Kf8 {[%emt 0:00:48]} 45. Ra7 {[%emt 0:00:11]} Ke8 {[%emt 0:00:32]} 46. Rb5 {[%emt 0:00:13]} Rh1+ {[%emt 0:00:20]} 47. Nxh1 {[%emt 0:00:10]} Kd8 {[%emt 0:00:18]} 48. Rb8# {[%emt 0:00:06]} 1-0

[Event "FIDE WCCC Open-08 2024"]
[Site "Montesilvano"]
[Date "2024.11.19"]
[Round "5.24"]
[White "Le, Khai"]
[Black "Wang, Yihan(Ah)"]
[Result "0-1"]
[ECO "D52"]
[WhiteElo "1808"]
[BlackElo "1630"]
[Annotator "NA RC"]
[PlyCount "104"]
[EventDate "2024.11.18"]
[EventType "swiss"]
[EventCountry "ITA"]
[SourceTitle "playchess.com"]
[Source "ChessBase"]
[SourceQuality "1"]
[TimeControl "5400+30"]

1. d4 {[%emt 0:01:26]} d5 {[%emt 0:00:27]} 2. c4 {[%emt 0:01:33]} e6 {[%emt 0:00:08]} 3. Nf3 {[%emt 0:01:31]} Nf6 {[%emt 0:00:19]} 4. Nc3 {[%emt 0:01:32]} c6 {[%emt 0:01:07]} 5. Bg5 {[%emt 0:01:25]} Nbd7 {[%emt 0:01:59]} 6. e3 {[%emt 0:00:49]} Qa5 {[%emt 0:01:07]} 7. Bd3 {[%emt 0:02:30]} dxc4 {[%emt 0:01:25]} 8. Bc2 {[%emt 0:01:13]} Bb4 {[%emt 0:06:08]} 9. Qd2 {[%emt 0:00:41]} Nd5 {[%emt 0:01:44]} 10. O-O {[%emt 0:01:44]} Nxc3 {[%emt 0:03:17]} 11. a3 {[%emt 0:00:20]} Nd5 {[%emt 0:07:38]} 12. axb4 {[%emt 0:00:23]} Qxb4 {[%emt 0:05:54]} 13. Qc1 {[%emt 0:00:23]} h6 {[%emt 0:07:04]} 14. Bh4 {[%emt 0:00:38]} O-O {[%emt 0:08:36]} 15. Ra4 {[%emt 0:02:13]} Qb5 {[%emt 0:07:24]} 16. Rxc4 {[%emt 0:00:49]} Kh8 {[%emt 0:06:30]} 17. Bd3 {[%emt 0:01:25]} Qb3 {[%emt 0:10:16]} 18. Bb1 {[%emt 0:01:16]} N7b6 {[%emt 0:03:18]} 19. Nd2 {[%emt 0:00:37]} Qb5 {[%emt 0:01:12]} 20. Rc5 {[%emt 0:00:23]} Qa6 {[%emt 0:02:55]} 21. Rd1 {[%emt 0:01:49]} Bd7 {[%emt 0:03:00]} 22. Nb3 {[%emt 0:03:29]} Nc8 {[%emt 0:02:28]} 23. Bd3 {[%emt 0:01:13]} Qb6 {[%emt 0:00:52]} 24. Nd2 {[%emt 0:00:42]} Nd6 {[%emt 0:02:00]} 25. Bb1 {[%emt 0:00:35]} Rfe8 {[%emt 0:01:09]} 26. Bg3 {[%emt 0:00:36]} Nf5 {[%emt 0:02:26]} 27. Bxf5 {[%emt 0:00:45]} exf5 {[%emt 0:00:21]} 28. Nc4 {[%emt 0:00:10]} Qb4 {[%emt 0:02:34]} 29. Nd6 {[%emt 0:02:49]} Rf8 {[%emt 0:01:23]} 30. Qc2 {[%emt 0:01:02]} a5 {[%emt 0:02:52]} 31. Nxf5 {[%emt 0:01:43]} Bxf5 {[%emt 0:02:09]} 32. Qxf5 {[%emt 0:00:17]} Qxb2 {[%emt 0:01:39]} 33. Rb1 {[%emt 0:01:51]} Qa2 {[%emt 0:01:25]} 34. Rcc1 {[%emt 0:00:47]} a4 {[%emt 0:01:24]} 35. Rxb7 {[%emt 0:00:17]} Qd2 {[%emt 0:01:54]} 36. Rbb1 {[%emt 0:00:29]} Nc3 {[%emt 0:01:18]} 37. Ra1 {[%emt 0:01:19]} Ne2+ {[%emt 0:00:16]} 38. Kf1 {[%emt 0:00:09]} Nxc1 {[%emt 0:00:16]} 39. Qf3 {[%emt 0:01:20]} Qb2 {[%emt 0:00:44]} 40. Be5 {[%emt 0:01:38]} Qxa1 {[%emt 0:00:40]} 41. Bxg7+ {[%emt 0:00:46]} Kxg7 {[%emt 0:00:37]} 42. Qg3+ {[%emt 0:00:29]} Kh7 {[%emt 0:00:23]} 43. Qg4 {[%emt 0:00:28]} Qb1 {[%emt 0:00:24]} 44. e4 {[%emt 0:00:27]} Qd3+ {[%emt 0:00:06]} 45. Ke1 {[%emt 0:00:06]} Qe2+ {[%emt 0:00:05]} 46. Qxe2 {[%emt 0:00:08]} Nxe2 {[%emt 0:00:02]} 47. Kxe2 {[%emt 0:21:44]} a3 {[%emt 0:00:11]} 48. f4 {[%emt 0:00:47]} a2 {[%emt 0:00:04]} 49. g4 {[%emt 0:00:07]} a1=Q {[%emt 0:00:17]} 50. h4 {[%emt 0:00:15]} Rfb8 {[%emt 0:00:09]} 51. e5 {[%emt 0:00:17]} Rb3 {[%emt 0:00:04]} 52. Kd2 {[%emt 0:18:24]} Ra2# {[%emt 0:00:39]} 0-1

[Event "FIDE WCCC Open-08 2024"]
[Site "Montesilvano"]
[Date "2024.11.19"]
[Round "5.25"]
[White "Kiss, Lorinc Istvan"]
[Black "Juzbasic, Marul"]
[Result "1-0"]
[ECO "C47"]
[WhiteElo "1501"]
[BlackElo "1726"]
[Annotator "NA RC"]
[PlyCount "91"]
[EventDate "2024.11.18"]
[EventType "swiss"]
[EventCountry "ITA"]
[SourceTitle "playchess.com"]
[Source "ChessBase"]
[SourceQuality "1"]
[TimeControl "5400+30"]

1. e4 {[%emt 0:00:02]} e5 {[%emt 0:00:09]} 2. Nf3 {[%emt 0:01:58]} Nf6 {[%emt 0:00:34]} 3. Nc3 {[%emt 0:02:31]} Nc6 {[%emt 0:00:32]} 4. d3 {[%emt 0:02:31]} Bc5 {[%emt 0:03:14]} 5. Be3 {[%emt 0:01:14]} Bb6 {[%emt 0:01:55]} 6. h3 {[%emt 0:05:22]} d5 {[%emt 0:04:01]} 7. Bg5 {[%emt 0:05:18]} d4 {[%emt 0:05:50]} 8. Nd5 {[%emt 0:01:42]} Ba5+ {[%emt 0:00:29]} 9. c3 {[%emt 0:01:17]} dxc3 {[%emt 0:01:28]} 10. bxc3 {[%emt 0:00:11]} Be6 {[%emt 0:02:13]} 11. Nxf6+ {[%emt 0:02:00]} gxf6 {[%emt 0:00:22]} 12. Bd2 {[%emt 0:00:34]} Qd6 {[%emt 0:04:47]} 13. Be2 {[%emt 0:05:52]} O-O-O {[%emt 0:01:52]} 14. O-O {[%emt 0:02:19]} Rhg8 {[%emt 0:01:16]} 15. Kh1 {[%emt 0:03:01]} Qd7 {[%emt 0:01:51]} 16. Rg1 {[%emt 0:02:01]} Bb6 {[%emt 0:06:53]} 17. Be3 {[%emt 0:02:40]} Bxe3 {[%emt 0:00:26]} 18. fxe3 {[%emt 0:00:12]} Rg7 {[%emt 0:01:25]} 19. Qc2 {[%emt 0:05:56]} Rg6 {[%emt 0:07:11]} 20. d4 {[%emt 0:02:30]} Bxh3 {[%emt 0:13:10]} 21. gxh3 {[%emt 0:01:20]} Qxh3+ {[%emt 0:00:32]} 22. Nh2 {[%emt 0:00:36]} Rh6 {[%emt 0:05:25]} 23. Bg4+ {[%emt 0:00:18]} Kb8 {[%emt 0:02:19]} 24. Bxh3 {[%emt 0:00:14]} Rxh3 {[%emt 0:01:01]} 25. Qf2 {[%emt 0:00:49]} Rh6 {[%emt 0:01:44]} 26. Rg7 {[%emt 0:00:18]} exd4 {[%emt 0:01:17]} 27. exd4 {[%emt 0:00:13]} a6 {[%emt 0:00:53]} 28. Rxf7 {[%emt 0:00:08]} Rd6 {[%emt 0:00:58]} 29. Rf8+ {[%emt 0:00:22]} Nd8 {[%emt 0:01:14]} 30. e5 {[%emt 0:00:18]} fxe5 {[%emt 0:00:14]} 31. dxe5 {[%emt 0:00:12]} Rd7 {[%emt 0:01:54]} 32. Rb1 {[%emt 0:00:47]} Re6 {[%emt 0:00:42]} 33. Qg2 {[%emt 0:00:26]} c6 {[%emt 0:01:02]} 34. Qg4 {[%emt 0:00:41]} Kc7 {[%emt 0:02:09]} 35. Rxd8 {[%emt 0:52:07]} Rxd8 {[%emt 0:00:45]} 36. Qxe6 {[%emt 0:00:00]} Rd7 {[%emt 0:01:13]} 37. Rxb7+ {[%emt 0:00:00]} Kxb7 {[%emt 0:00:12]} 38. Qxd7+ {[%emt 0:00:00]} Kb6 {[%emt 0:00:14]} 39. a4 {[%emt 0:00:00]} a5 {[%emt 0:00:13]} 40. Qd8+ {[%emt 0:00:00]} Kb7 {[%emt 0:00:48]} 41. e6 {[%emt 0:00:00]} h5 {[%emt 0:00:22]} 42. e7 {[%emt 0:00:00]} h4 {[%emt 0:00:13]} 43. e8=R {[%emt 0:00:00]} h3 {[%emt 0:00:12]} 44. Re7+ {[%emt 0:00:00]} Ka6 {[%emt 0:01:03]} 45. Qa8+ {[%emt 0:00:00]} Kb6 {[%emt 0:00:47]} 46. Qa7# {[%emt 0:00:00]} 1-0

[Event "FIDE WCCC Open-08 2024"]
[Site "Montesilvano"]
[Date "2024.11.19"]
[Round "5.26"]
[White "Vo, Daniel"]
[Black "Xin, Andrew M."]
[Result "1-0"]
[ECO "C11"]
[WhiteElo "1711"]
[BlackElo "1546"]
[Annotator "NA RC"]
[PlyCount "81"]
[EventDate "2024.11.18"]
[EventType "swiss"]
[EventCountry "ITA"]
[SourceTitle "playchess.com"]
[Source "ChessBase"]
[SourceQuality "1"]
[TimeControl "5400+30"]

1. e4 {[%emt 0:00:01]} e6 {[%emt 0:00:22]} 2. Nf3 {[%emt 0:00:18]} d5 {[%emt 0:00:15]} 3. Nc3 {[%emt 0:00:18]} Nf6 {[%emt 0:00:22]} 4. e5 {[%emt 0:00:23]} Nfd7 {[%emt 0:00:08]} 5. d4 {[%emt 0:01:10]} c5 {[%emt 0:00:27]} 6. dxc5 {[%emt 0:00:24]} Nc6 {[%emt 0:03:26]} 7. Bf4 {[%emt 0:00:35]} Bxc5 {[%emt 0:00:51]} 8. Bd3 {[%emt 0:00:58]} Qc7 {[%emt 0:00:16]} 9. Qe2 {[%emt 0:03:21]} Bb4 {[%emt 0:01:13]} 10. O-O {[%emt 0:02:06]} O-O {[%emt 0:01:58]} 11. Bxh7+ {[%emt 0:01:06]} Kxh7 {[%emt 0:00:47]} 12. Ng5+ {[%emt 0:00:31]} Kg6 {[%emt 0:00:08]} 13. Qd3+ {[%emt 0:00:53]} f5 {[%emt 0:12:41]} 14. Qg3 {[%emt 0:01:39]} Qb8 {[%emt 0:02:07]} 15. h4 {[%emt 0:09:53]} Rh8 {[%emt 0:02:10]} 16. h5+ {[%emt 0:03:41]} Rxh5 {[%emt 0:02:06]} 17. Nxe6+ {[%emt 0:00:43]} Kf7 {[%emt 0:00:29]} 18. Qxg7+ {[%emt 0:00:47]} Ke8 {[%emt 0:02:15]} 19. Qg8+ {[%emt 0:01:02]} Nf8 {[%emt 0:03:18]} 20. Ng7+ {[%emt 0:00:40]} Kd8 {[%emt 0:03:01]} 21. Nxh5 {[%emt 0:02:15]} Be6 {[%emt 0:04:23]} 22. Qg5+ {[%emt 0:02:43]} Be7 {[%emt 0:00:13]} 23. Qg3 {[%emt 0:00:44]} Bb4 {[%emt 0:01:25]} 24. Nxd5 {[%emt 0:03:17]} Nd4 {[%emt 0:03:42]} 25. Qh4+ {[%emt 0:01:36]} Ke8 {[%emt 0:01:37]} 26. Nxb4 {[%emt 0:01:47]} Ne2+ {[%emt 0:00:49]} 27. Kh1 {[%emt 0:00:17]} Qc7 {[%emt 0:00:29]} 28. Nf6+ {[%emt 0:01:25]} Kd8 {[%emt 0:02:14]} 29. Nfd5+ {[%emt 0:00:19]} Kc8 {[%emt 0:00:16]} 30. Nxc7 {[%emt 0:00:12]} Kxc7 {[%emt 0:00:07]} 31. Qe7+ {[%emt 0:00:27]} Kc8 {[%emt 0:00:07]} 32. Qxf8+ {[%emt 0:00:08]} Kc7 {[%emt 0:00:06]} 33. Qxa8 {[%emt 0:00:12]} Nxf4 {[%emt 0:00:08]} 34. Qxa7 {[%emt 0:00:23]} Nh5 {[%emt 0:00:13]} 35. Qc5+ {[%emt 0:00:09]} Kd8 {[%emt 0:00:07]} 36. Qd6+ {[%emt 1:02:07]} Kc8 {[%emt 0:00:08]} 37. Qxe6+ {[%emt 0:00:00]} Kd8 {[%emt 0:00:04]} 38. Rad1+ {[%emt 0:00:00]} Kc7 {[%emt 0:00:06]} 39. Nd5+ {[%emt 0:00:00]} Kd8 {[%emt 0:00:10]} 40. Qe7+ {[%emt 0:00:00]} Kc8 {[%emt 0:00:05]} 41. Qe8# {[%emt 0:00:00]} 1-0

[Event "FIDE WCCC Open-08 2024"]
[Site "Montesilvano"]
[Date "2024.11.19"]
[Round "5.27"]
[White "Meiyazhagan, Kaviinayan"]
[Black "Agar, Garig"]
[Result "1-0"]
[ECO "C55"]
[WhiteElo "1707"]
[BlackElo "1534"]
[Annotator "NA RC"]
[PlyCount "83"]
[EventDate "2024.11.18"]
[EventType "swiss"]
[EventCountry "ITA"]
[SourceTitle "playchess.com"]
[Source "ChessBase"]
[SourceQuality "1"]
[TimeControl "5400+30"]

1. e4 {[%emt 0:00:10]} e5 {[%emt 0:00:30]} 2. Nf3 {[%emt 0:00:07]} Nc6 {[%emt 0:00:21]} 3. Bc4 {[%emt 0:00:12]} Nf6 {[%emt 0:00:11]} 4. d3 {[%emt 0:00:11]} Be7 {[%emt 0:00:18]} 5. O-O {[%emt 0:00:45]} O-O {[%emt 0:00:09]} 6. Nc3 {[%emt 1:32:05]} d6 {[%emt 0:00:18]} 7. h3 {[%emt 0:00:00]} Be6 {[%emt 1:32:13]} 8. Bb3 {[%emt 0:00:00]} Bxb3 {[%emt 0:00:00]} 9. axb3 {[%emt 0:00:00]} a6 {[%emt 0:00:00]} 10. d4 {[%emt 0:00:00]} Re8 {[%emt 0:00:00]} 11. Bg5 {[%emt 0:00:00]} h6 {[%emt 0:02:00]} 12. Bh4 {[%emt 0:00:00]} g5 {[%emt 0:00:00]} 13. Bg3 {[%emt 0:00:00]} Bf8 {[%emt 0:00:00]} 14. d5 {[%emt 0:00:00]} Ne7 {[%emt 0:00:00]} 15. Qd2 {[%emt 0:00:00]} Ng6 {[%emt 0:00:00]} 16. Rfe1 {[%emt 0:00:00]} Nh5 {[%emt 0:00:00]} 17. Nd1 {[%emt 0:00:00]} Nhf4 {[%emt 0:00:00]} 18. Ne3 {[%emt 0:00:00]} Qf6 {[%emt 0:00:00]} 19. Nf5 {[%emt 0:00:00]} Bg7 {[%emt 0:04:00]} 20. Bxf4 {[%emt 0:00:00]} Nxf4 {[%emt 0:00:00]} 21. Kh2 {[%emt 0:00:00]} Bf8 {[%emt 0:00:00]} 22. g3 {[%emt 0:00:00]} Ng6 {[%emt 0:00:00]} 23. Qb4 {[%emt 0:00:00]} Ne7 {[%emt 0:00:00]} 24. g4 {[%emt 0:00:00]} b5 {[%emt 0:00:00]} 25. c4 {[%emt 0:00:00]} bxc4 {[%emt 0:00:00]} 26. Qxc4 {[%emt 0:00:00]} Nxf5 {[%emt 0:00:00]} 27. gxf5 {[%emt 0:00:00]} Qe7 {[%emt 0:00:00]} 28. Rxa6 {[%emt 0:00:00]} Rxa6 {[%emt 0:00:00]} 29. Qxa6 {[%emt 0:00:00]} Rb8 {[%emt 0:00:00]} 30. Nd2 {[%emt 0:00:00]} Rb6 {[%emt 0:00:00]} 31. Qc4 {[%emt 0:00:00]} Qd8 {[%emt 0:00:00]} 32. Rc1 {[%emt 0:00:00]} Rb7 {[%emt 0:00:00]} 33. Qc3 {[%emt 0:00:00]} Qb8 {[%emt 0:00:00]} 34. f6 {[%emt 0:00:00]} Qd8 {[%emt 0:00:00]} 35. Qf3 {[%emt 0:00:00]} Kh8 {[%emt 0:00:00]} 36. Rg1 {[%emt 0:02:41]} Qd7 {[%emt 0:00:00]} 37. h4 {[%emt 0:00:29]} Kh7 {[%emt 0:00:00]} 38. hxg5 {[%emt 0:01:41]} hxg5 {[%emt 0:00:00]} 39. Qh5+ {[%emt 0:00:30]} Bh6 {[%emt 0:00:00]} 40. Rxg5 {[%emt 0:00:09]} Qe8 {[%emt 0:00:00]} 41. Rg7+ {[%emt 0:00:14]} Kh8 {[%emt 0:00:00]} 42. Qxh6# {[%emt 0:00:35]} 1-0